fUSD/lending_fUSD_20241002
["ID","MTS","AMOUNT","RATE_DAILY","PERIOD"]
[339723696,1727897438666,-1100.0,0.00012,4]
[339723697,1727897438675,-150.0,0.000121,2]
[339723698,1727897438683,-1124.79399184,0.000121,4]
[339723699,1727897438696,-1075.20600816,0.000121,4]
[339723700,1727897438705,-190.42,0.00012109,2]
[339723701,1727897438715,-3300.0,0.000122,4]
[339723702,1727897438724,-4400.0,0.000123,4]
[339723703,1727897438733,-180.0,0.00012351,2]
[339723704,1727897438742,-372.43310373,0.00012357,2]
[339723705,1727897438751,-184.41,0.00012396,2]
[339723706,1727897438760,-3091.50136612,0.000124,4]
[339723707,1727897438779,-299.58797889,0.000124,4]
[339723709,1727897440213,-544.2194702,0.000124,4]
[339723711,1727897440225,-1564.69118479,0.000124,4]
[339723713,1727897440238,-1100.0,0.000125,4]
[339723715,1727897440247,-600.0,0.00012503,2]
[339723716,1727897440256,-78.50069967,0.000126,4]
[339723717,1727897440339,-1021.49930033,0.000126,4]
[339723718,1727897440348,-562.0,0.000126,2]
[339723719,1727897440358,-150.0,0.00012672,2]
[339723720,1727897440367,-178.6,0.0001269,2]
[339723721,1727897440376,-3508.90069998,0.000127,2]
[339723722,1727897440442,-695.0,0.000127,2]
[339723724,1727897440552,-1448.42060002,0.000127,2]
[339723725,1727897440562,-167.0179,0.000127,2]
[339723726,1727897440571,-1221.3552,0.000127,2]
[339723727,1727897440580,-4850.1712,0.000127,2]
[339723728,1727897440589,-550.9499,0.000127,2]
[339723729,1727897440599,-1100.0,0.000127,4]
[339723730,1727897440608,-11247.05845805,0.000127,2]
[339723731,1727897440627,-2961.7756547,0.000127,2]
[339723732,1727897440638,-737.45770527,0.000127,2]
[339724027,1727897443637,-562.48999992,0.000127,2]
[339724029,1727897443648,-1310.3230915,0.000127,2]
[339724031,1727897443663,-1674.72378762,0.000127,2]
[339724033,1727897443672,-300.01409665,0.000127,2]
[339724035,1727897443681,-350.74280368,0.000127,2]
[339724037,1727897443692,-500.0,0.00012773,2]
[339724039,1727897443701,-171.12238835,0.00012773,2]
[339724041,1727897443710,-26.9969237,0.00012773,2]
[339724049,1727897443775,-473.0030763,0.00012773,2]
[339724051,1727897443784,-500.0,0.00012797,2]
[339724053,1727897443793,-189.63071719,0.00012797,2]
[339724055,1727897443802,-47.36620651,0.00012799,2]
[339724295,1727897446291,-279.685832,0.00012799,2]
[339724297,1727897446301,-352.0591684,0.000128,2]
[339724299,1727897446313,-785.9408316,0.000128,2]
[339724301,1727897446323,-242088.35860122,0.000128,2]
[339724303,1727897446334,-363.9,0.000128,2]
[339724313,1727897446415,-47262.40019955,0.000128,2]
[339724315,1727897446426,-2950.57287906,0.000128,2]
[339724322,1727897446485,-1512.55699,0.000128,2]
[339724324,1727897446496,-58635.90933744,0.000128,2]
[339724333,1727897446578,-597.225,0.000128,2]
[339724440,1727897589005,500.0,0.00021999,120]
[339724441,1727897592178,500.0,0.00021999,120]
[339724442,1727897600513,200.0,0.00021,120]
[339724443,1727897600927,200.0,0.000216,120]
[339724444,1727897612384,329.8,0.00010026,2]
[339724446,1727898226439,4858.424897,0.00022,120]
[339724447,1727898226734,4858.424897,0.00022,120]
[339724448,1727898227060,4858.424897,0.00022,120]
[339724449,1727898228060,4858.424897,0.00022,120]
[339724450,1727898228172,4858.424897,0.00022,120]
[339724451,1727898228383,4858.424897,0.00022,120]
[339724452,1727898228673,4858.424897,0.00022,120]
[339724453,1727898229198,4858.424897,0.00022,120]
[339724454,1727898229494,4858.424897,0.00022,120]
[339724455,1727898229795,4858.424897,0.00022,120]
[339724456,1727898230088,4858.424897,0.00022,120]
[339724457,1727898230377,4858.424897,0.00022,120]
[339724458,1727898230668,4858.424897,0.00022,120]
[339724459,1727898230966,4858.424897,0.00022,120]
[339724460,1727898231271,4858.424897,0.00022,120]
[339724461,1727898333242,325.81,9.326e-05,2]
[339724462,1727898439901,176.43,8.963e-05,2]
[339724531,1727898632326,-610.9695,0.00010859,2]
[339724533,1727898632336,-296.1963782,0.00010904,2]
[339724534,1727898632348,-2719.6125248,0.00010904,2]
[339724535,1727898632359,-166.04,0.00010959,2]
[339724536,1727898632368,-162.98,0.00010959,2]
[339724537,1727898632379,-250.0,0.00011,2]
[339724538,1727898632389,-197.37,0.00011227,2]
[339724539,1727898632399,-239.11,0.0001124,2]
[339724540,1727898632409,-200.0,0.00011249,2]
[339724541,1727898632419,-1000.0,0.00011266,2]
[339724542,1727898632428,-9157.36423031,0.00011302,2]
[339724543,1727898632456,-13981.99576969,0.00011302,2]
[339724544,1727898632466,-184.41,0.0001136,2]
[339724545,1727898632476,-150.0,0.0001137,2]
[339724546,1727898632486,-205.84,0.0001137,2]
[339724547,1727898632495,-265.91,0.00011405,2]
[339724548,1727898632505,-250.0,0.00011424,2]
[339724549,1727898632514,-499.99,0.00011424,2]
[339724550,1727898632524,-150.0,0.00011463,2]
[339724551,1727898632535,-250.0,0.00011489,2]
[339724552,1727898632544,-500.0,0.00011504,2]
[339724553,1727898632554,-187.7597,0.00011508,2]
[339724554,1727898632564,-150.0,0.00011515,2]
[339724555,1727898632573,-150.0,0.00011515,2]
[339724556,1727898632582,-150.0,0.00011515,2]
[339724557,1727898632592,-230.27365888,0.00011515,2]
[339724558,1727898632602,-150.0,0.00011515,2]
[339724559,1727898632612,-325.81,0.0001159,2]
[339724560,1727898632622,-221.3,0.00011687,2]
[339724561,1727898632631,-150.0,0.00011942,2]
[339724562,1727898632643,-260.54,0.00011981,2]
[339724563,1727898632653,-900.0,0.00012,4]
[339724564,1727898632663,-190.42,0.0001204,2]
[339724565,1727898632673,-177.71,0.00012055,2]
[339724566,1727898632682,-150.0,0.00012078,2]
[339724567,1727898632692,-309.91,0.00012078,2]
[339724568,1727898632702,-1800.0,0.000121,4]
[339724569,1727898632711,-2700.0,0.000122,4]
[339724570,1727898632721,-754.24,0.00012247,2]
[339724572,1727898632739,-754.24,0.00012247,2]
[339724574,1727898632748,-754.24,0.00012247,2]
[339724576,1727898632759,-754.24,0.00012247,2]
[339724578,1727898632769,-754.24,0.00012247,2]
[339724580,1727898632778,-193.7,0.00012247,2]
[339724582,1727898632788,-3075.2722,0.0001229,2]
[339724584,1727898632797,-3600.0,0.000123,4]
[339724586,1727898632806,-150.0,0.00012368,2]
[339724588,1727898632815,-180.0,0.00012371,2]
[339724590,1727898632825,-4500.0,0.000124,4]
[339724592,1727898632834,-168.14,0.00012445,2]
[339724594,1727898632843,-900.0,0.000125,4]
[339724595,1727898632852,-360.00423274,0.00012525,2]
[339724598,1727898632862,-900.0,0.000126,4]
[339724599,1727898632871,-197.37,0.0001263,2]
[339724601,1727898632881,-1000.0,0.00012674,2]
[339724603,1727898632894,-165.67827755,0.000127,2]
[339724605,1727898632903,-157.36847043,0.000127,2]
[339724608,1727898632913,-8487.1344,0.000127,2]
[339724609,1727898632922,-4899.9963,0.000127,2]
[339724612,1727898632932,-801.5619,0.000127,2]
[339724613,1727898632941,-3612.2717,0.000127,2]
[339724615,1727898632950,-31779.17411434,0.000127,2]
[339724617,1727898632960,-900.0,0.000127,4]
[339724619,1727898632970,-446.67037272,0.000127,2]
[339724621,1727898632979,-2444.96270613,0.000127,2]
[339724623,1727898632989,-429.30959146,0.000127,2]
[339724625,1727898632998,-586.44862252,0.00012773,2]
[339724628,1727898633008,-500.0,0.00012773,2]
[339724630,1727898633019,-500.0,0.00012773,2]
[339724631,1727898633030,-199.15185173,0.0001279,2]
[339724633,1727898633040,-150.0,0.00012795,2]
[339724635,1727898633050,-150.0,0.00012795,2]
[339724637,1727898633060,-150.0,0.00012795,2]
[339724639,1727898633071,-500.0,0.00012797,2]
[339724641,1727898633080,-535.77172773,0.00012797,2]
[339724643,1727898633089,-353.06044396,0.00012799,2]
[339724644,1727898633101,-500.0,0.00012799,2]
[339724645,1727898633111,-500.0,0.00012799,2]
[339724646,1727898633121,-500.0,0.00012799,2]
[339724647,1727898633132,-358.09378143,0.00012799,2]
[339724648,1727898633145,-1025.0,0.000128,2]
[339724649,1727898633154,-10008.22331439,0.000128,2]
[339724650,1727898633168,-3900.0,0.000128,2]
[339724651,1727898633261,-430.2207,0.000128,2]
[339724652,1727898633282,-1400.22630731,0.000128,2]
[339724653,1727898633295,-4759.99999999,0.000128,2]
[339724654,1727898633306,-1467.87324433,0.000128,2]
[339724655,1727898633321,-1684.98777253,0.000128,2]
[339724656,1727898633367,-708.5697122,0.000128,2]
[339724657,1727898633379,-604.98,0.000128,2]
[339724680,1727898638404,-302.8896,0.00012773,2]
[339724681,1727898638416,-197.1104,0.00012773,2]
[339724682,1727898638425,-3168.8396,0.000128,2]
[339724685,1727898639193,-31751.49999998,0.000128,2]
[339724686,1727898639205,-1379.76869336,0.000128,2]
[339724687,1727898639230,-1000.0,0.000128,2]
[339724688,1727898639242,-364.55288824,0.000128,2]
[339724689,1727898639315,-1231.76374629,0.000128,2]
[339724696,1727898640589,-1297.0,0.000128,2]
[339724697,1727898640602,-338.55011673,0.000128,2]
[339724698,1727898640614,-4528.587657,0.000128,2]
[339724699,1727898640626,-368617.18965725,0.000128,2]
[339724707,1727898643454,-703.0691688,0.000127,2]
[339724708,1727898643463,-5332.9308312,0.000128,2]
[339724709,1727898643474,-9048.42529916,0.000128,2]
[339724710,1727898643518,-3690282.025531,0.000128,2]
[339724711,1727898643697,-13442.43320789,0.000128,2]
[339724712,1727898643708,-2949.90332515,0.000128,2]
[339724713,1727898643759,-3027.25,0.000128,2]
[339724738,1727898646334,-603.34462552,0.000128,2]
[339724752,1727898646459,-253.3464732,0.000128,2]
[339724753,1727898646472,-117.30890128,0.000128,2]
[339724755,1727898646482,-5934.89109872,0.000128,2]
[339724759,1727898646525,-547.51,0.000128,2]
[339724764,1727898646593,-34446.88841606,0.000128,2]
[339724765,1727898646605,-3352.26928,0.000128,2]
[339724766,1727898646658,-2072.30415961,0.000128,2]
[339724767,1727898646669,-150635.00000032,0.000128,2]
[339724896,1727899107690,305.72,9.739e-05,2]
[339724897,1727899390494,500.0,0.00021999,120]
[339724919,1727899757282,290.43,9.175e-05,2]
[339724924,1727899831572,-188.78132064,0.00010759,2]
[339724925,1727899831581,-157.73970547,0.00010759,2]
[339724926,1727899831591,-500.0,0.00010859,2]
[339724927,1727899831600,-500.0,0.00010859,2]
[339724928,1727899831610,-104.71987547,0.00010959,2]
[339724929,1727899831621,-51.28012453,0.00010959,2]
[339724930,1727899831630,-833.34,0.00010959,2]
[339724931,1727899831640,-166.66,0.00010959,2]
[339724932,1727899831649,-250.0,0.00011,2]
[339724933,1727899831659,-1034.07,0.00011132,2]
[339724934,1727899831667,-250.0,0.00011155,2]
[339724935,1727899831677,-208.43,0.00011223,2]
[339724936,1727899831687,-286.14,0.00011225,2]
[339724937,1727899831696,-653.43,0.00011239,2]
[339724944,1727899831843,-1000.0,0.00011271,2]
[339724946,1727899831853,-250.0,0.0001136,2]
[339724948,1727899831863,-290.43,0.00011439,2]
[339724950,1727899831872,-150.0,0.00011515,2]
[339724951,1727899831882,-150.0,0.00011515,2]
[339724953,1727899831891,-473.5,0.00011515,2]
[339724954,1727899831900,-295.41,0.00011527,2]
[339724955,1727899831910,-452.48,0.00011541,2]
[339724957,1727899831920,-200.0,0.00011774,2]
[339724958,1727899831929,-195.49,0.00011843,2]
[339724960,1727899831938,-174.38,0.00011922,2]
[339724961,1727899831947,-150.0,0.00011942,2]
[339724963,1727899831957,-282.57,0.0001196,2]
[339724964,1727899831967,-423.25,0.00012247,2]
[339724965,1727899831976,-423.25,0.00012247,2]
[339724966,1727899831985,-423.25,0.00012247,2]
[339724967,1727899831994,-423.25,0.00012247,2]
[339724968,1727899832004,-423.25,0.00012247,2]
[339724969,1727899832013,-423.25,0.00012247,2]
[339724970,1727899832022,-423.25,0.00012247,2]
[339724971,1727899832034,-180.0,0.00012344,2]
[339724972,1727899832044,-150.0,0.00012368,2]
[339724973,1727899832054,-150.0,0.00012488,2]
[339724974,1727899832063,-300.12,0.00012488,2]
[339724975,1727899832073,-1000.0,0.000125,2]
[339724976,1727899832082,-690.61045239,0.00012507,2]
[339724977,1727899832092,-690.61045238,0.00012528,2]
[339724978,1727899832103,-690.61045238,0.0001255,2]
[339724979,1727899832113,-690.61045238,0.00012571,2]
[339724980,1727899832123,-690.61045238,0.00012593,2]
[339724981,1727899832132,-511.818,0.00012599,2]
[339724982,1727899832141,-714.75,0.000126,2]
[339724983,1727899832151,-1174.0,0.000126,2]
[339724984,1727899832161,-857.183,0.00012607,2]
[339724985,1727899832170,-1000.0,0.00012607,2]
[339724986,1727899832180,-500.0,0.00012607,2]
[339724987,1727899832189,-245000.0,0.00012607,2]
[339724988,1727899832199,-2500.0,0.00012607,2]
[339724989,1727899832210,-5513.4101,0.00012607,2]
[339724990,1727899832219,-67301.22383215,0.00012607,2]
[339724991,1727899832236,-940.47405097,0.00012607,2]
[339724992,1727899832247,-1709.87048133,0.00012607,2]
[339724993,1727899832260,-30048.43163555,0.00012607,2]
[339724994,1727899832270,-3056.4798,0.00012607,2]
[339724995,1727899832282,-240.212,0.00012607,2]
[339724996,1727899832291,-690.61045238,0.00012614,2]
[339724997,1727899832300,-208.43,0.00012626,2]
[339724998,1727899832310,-690.61045238,0.00012636,2]
[339724999,1727899832319,-690.61045238,0.00012657,2]
[339725000,1727899832328,-500.0,0.00012673,2]
[339725001,1727899832337,-500.0,0.00012673,2]
[339725002,1727899832347,-925.56339026,0.00012673,2]
[339725003,1727899832356,-925.56339026,0.00012677,2]
[339725004,1727899832366,-690.61045238,0.00012679,2]
[339725005,1727899832377,-1000.0,0.0001268,2]
[339725006,1727899832388,-925.56339026,0.00012681,2]
[339725007,1727899832397,-925.56339026,0.00012685,2]
[339725008,1727899832406,-925.56339026,0.00012688,2]
[339725009,1727899832417,-925.56339026,0.00012692,2]
[339725010,1727899832426,-925.56339026,0.00012696,2]
[339725011,1727899832436,-500.0,0.00012697,2]
[339725012,1727899832445,-500.0,0.00012698,2]
[339725013,1727899832457,-500.0,0.00012698,2]
[339725014,1727899832467,-165.67827754,0.000127,2]
[339725015,1727899832476,-518.99111184,0.000127,2]
[339725016,1727899832485,-150.0,0.000127,2]
[339725017,1727899832495,-876.07,0.000127,2]
[339725018,1727899832505,-12443.38925466,0.000127,2]
[339725019,1727899832586,-2470.52734534,0.000127,2]
[339725020,1727899832596,-1000.0,0.000127,2]
[339725021,1727899832605,-1292.87265465,0.000127,2]
[339725022,1727899832617,-1207.12734535,0.000127,2]
[339725023,1727899832626,-2500.0,0.000127,2]
[339725024,1727899832636,-30.33582354,0.000127,2]
[339725025,1727899832648,-173.96427646,0.000127,2]
[339725026,1727899832658,-3424.39246072,0.000127,2]
[339725027,1727899832667,-846.827,0.000127,2]
[339725028,1727899832677,-169.967,0.000127,2]
[339725029,1727899832686,-701.48560736,0.000127,2]
[339725030,1727899832696,-925.56339026,0.000127,2]
[339725031,1727899832706,-528.35096145,0.000127,2]
[339725032,1727899832715,-586.42146693,0.000127,2]
[339725033,1727899832725,-690.61045238,0.000127,2]
[339725034,1727899832735,-18952.08938444,0.00012706,2]
[339725039,1727899837487,-1500.0,0.00012706,2]
[339725040,1727899837498,-255.53745705,0.00012706,2]
[339725043,1727899837846,-2460.588354,0.00012706,2]
[339725049,1727899839545,-332.552778,0.00012706,2]
[339725050,1727899839776,-634.52656044,0.00012706,2]
[339725051,1727899839788,-1207.246285,0.00012706,2]
[339725052,1727899839799,-595.47000001,0.00012706,2]
[339725053,1727899839811,-1827.20223114,0.00012706,2]
[339725054,1727899839865,-28413.12954961,0.00012706,2]
[339725055,1727899839876,-15411.9318178,0.00012706,2]
[339725065,1727899842609,-5856.83755031,0.00012706,2]
[339725067,1727899842667,-720.70825157,0.00012706,2]
[339725068,1727899842985,-2417.29,0.00012706,2]
[339725069,1727899842996,-60742.58755431,0.00012706,2]
[339725078,1727899845603,-577.55220676,0.00012706,2]
[339725079,1727899845762,-32780.41647172,0.00012706,2]
[339725080,1727899845772,-500.0,0.00012773,2]
[339725081,1727899845781,-500.0,0.00012773,2]
[339725082,1727899845790,-160.69455779,0.00012773,2]
[339725083,1727899845799,-156.63563822,0.00012773,2]
[339725084,1727899845808,-155.0,0.0001278,2]
[339725085,1727899845817,-223.75292897,0.0001278,5]
[339725086,1727899845827,-178.20176324,0.0001279,2]
[339725087,1727899845835,-178.20176324,0.0001279,2]
[339725088,1727899845844,-178.20176324,0.0001279,2]
[339725089,1727899845854,-150.0,0.00012795,2]
[339725090,1727899845863,-229.394294,0.00012799,2]
[339725091,1727899845873,-406.01579379,0.00012799,2]
[339725093,1727899845882,-824.0,0.000128,2]
[339725095,1727899845892,-478512.34189336,0.000128,2]
[339725107,1727899906179,230.614335,0.00022,120]
[339725109,1727900373398,297.71,9.714e-05,2]
[339725110,1727900589795,500.0,0.00021999,120]
[339725115,1727900884367,295.0,9.458e-05,2]
[339725152,1727901031739,-800.889,0.0001078,2]
[339725153,1727901031749,-172.188,0.0001078,2]
[339725154,1727901031763,-696.5807871,0.000109,2]
[339725155,1727901031773,-514.9049,0.000109,2]
[339725156,1727901031783,-163.4,0.00010959,2]
[339725157,1727901031793,-166.04,0.00010959,2]
[339725158,1727901031803,-500.0,0.00010973,2]
[339725159,1727901031812,-1225.17190791,0.0001099,2]
[339725160,1727901031821,-267.30264489,0.0001099,2]
[339725161,1727901031832,-300.0,0.00010999,2]
[339725162,1727901031842,-150.0,0.00010999,2]
[339725163,1727901031851,-278547.86685954,0.00011,2]
[339725164,1727901031872,-24576.92238745,0.00011,2]
[339725165,1727901031919,-438.58020339,0.00011,2]
[339725166,1727901031963,-1437.62195802,0.00011,2]
[339725181,1727901037771,-250.27472891,0.00011,2]
[339725182,1727901037782,-18158.9353055,0.00011,2]
[339725183,1727901037883,-987.9,0.00011,2]
[339725198,1727901039665,-2968.01,0.00011,2]
[339725200,1727901039676,-697.45000998,0.00011,2]
[339725202,1727901039689,-300.0,0.00011,2]
[339725213,1727901039784,-259459.71667387,0.00011,2]
[339725215,1727901039795,-29716.71784869,0.00011,2]
[339725217,1727901039804,-259.03,0.00011121,2]
[339725219,1727901039814,-1799.53102747,0.0001127,2]
[339725221,1727901039825,-250.0,0.0001137,2]
[339725222,1727901039835,-1799.53102739,0.00011429,2]
[339725223,1727901039844,-226.52171727,0.00011515,2]
[339725224,1727901039855,-150.0,0.00011515,2]
[339725225,1727901039867,-150.00000001,0.00011515,2]
[339725226,1727901039883,-150.0,0.00011515,2]
[339725227,1727901039892,-150.0,0.00011515,2]
[339725228,1727901039901,-585.63,0.00011515,2]
[339725229,1727901039910,-156.39,0.00011547,2]
[339725230,1727901039920,-600.0,0.00011577,2]
[339725231,1727901039930,-1799.53102739,0.00011588,2]
[339725232,1727901039940,-250.0,0.00011591,2]
[339725233,1727901039949,-295.0,0.00011722,2]
[339725234,1727901039958,-1799.53102739,0.00011747,2]
[339725236,1727901039968,-500.0,0.000119,2]
[339725238,1727901039977,-500.0,0.000119,2]
[339725240,1727901039986,-500.0,0.000119,2]
[339725242,1727901039995,-500.0,0.000119,2]
[339725244,1727901040004,-500.0,0.000119,2]
[339725246,1727901040013,-500.0,0.000119,2]
[339725248,1727901040023,-500.0,0.000119,2]
[339725250,1727901040032,-500.0,0.000119,2]
[339725252,1727901040041,-500.0,0.000119,2]
[339725254,1727901040050,-500.0,0.000119,2]
[339725256,1727901040059,-500.0,0.000119,2]
[339725258,1727901040068,-500.0,0.000119,2]
[339725259,1727901040077,-500.0,0.000119,2]
[339725261,1727901040086,-500.0,0.000119,2]
[339725263,1727901040095,-500.0,0.000119,2]
[339725265,1727901040104,-500.0,0.000119,2]
[339725267,1727901040117,-500.0,0.000119,2]
[339725269,1727901040127,-500.0,0.000119,2]
[339725271,1727901040136,-500.0,0.000119,2]
[339725273,1727901040145,-500.0,0.000119,2]
[339725276,1727901040156,-500.0,0.000119,2]
[339725278,1727901040168,-500.0,0.000119,2]
[339725280,1727901040179,-500.0,0.000119,2]
[339725283,1727901040191,-500.0,0.000119,2]
[339725285,1727901040203,-500.0,0.000119,2]
[339725287,1727901040213,-500.0,0.000119,2]
[339725289,1727901040223,-500.0,0.000119,2]
[339725291,1727901040235,-500.0,0.000119,2]
[339725293,1727901040247,-500.0,0.000119,2]
[339725296,1727901040258,-500.0,0.000119,2]
[339725298,1727901040270,-500.0,0.000119,2]
[339725300,1727901040281,-643.45,0.000119,2]
[339725302,1727901040293,-500.0,0.000119,2]
[339725304,1727901040304,-500.0,0.000119,2]
[339725307,1727901040316,-500.0,0.000119,2]
[339725309,1727901040328,-500.0,0.000119,2]
[339725311,1727901040340,-500.0,0.000119,2]
[339725313,1727901040353,-500.0,0.000119,2]
[339725316,1727901040365,-500.0,0.000119,2]
[339725318,1727901040378,-500.0,0.000119,2]
[339725320,1727901040391,-500.0,0.000119,2]
[339725323,1727901040402,-500.0,0.000119,2]
[339725325,1727901040414,-500.0,0.000119,2]
[339725327,1727901040425,-500.0,0.000119,2]
[339725329,1727901040435,-500.0,0.000119,2]
[339725332,1727901040447,-500.0,0.000119,2]
[339725334,1727901040459,-500.0,0.000119,2]
[339725336,1727901040470,-343.82,0.000119,2]
[339725338,1727901040480,-500.0,0.000119,2]
[339725340,1727901040492,-500.0,0.000119,2]
[339725342,1727901040502,-255.12,0.000119,2]
[339725344,1727901040512,-1799.53102739,0.00011906,2]
[339725347,1727901040521,-374.85909679,0.00012,2]
[339725349,1727901040536,-1997.55683745,0.00012,2]
[339725351,1727901040546,-193.0,0.00012044,2]
[339725353,1727901040558,-1799.53102739,0.00012064,2]
[339725355,1727901040570,-400.0,0.00012086,2]
[339725357,1727901040581,-420.0,0.00012087,2]
[339725360,1727901040593,-157.25,0.0001213,2]
[339725362,1727901040604,-1799.53102739,0.00012223,2]
[339725364,1727901040618,-1799.53102739,0.00012382,2]
[339725366,1727901040632,-5783.3745,0.00012407,2]
[339725368,1727901040644,-2500.0,0.00012407,2]
[339725370,1727901040657,-167.47,0.00012445,2]
[339725372,1727901040669,-2500.0,0.00012498,2]
[339725375,1727901040681,-1000.0,0.000125,2]
[339725377,1727901040691,-500.0,0.00012506,2]
[339725379,1727901040702,-500.0,0.00012506,2]
[339725381,1727901040712,-433.75500116,0.00012506,2]
[339725383,1727901040722,-9228.63822975,0.00012507,2]
[339725388,1727901040757,-10428.06311016,0.00012507,2]
[339725597,1727901042955,-562.6023957,0.00012507,2]
[339725599,1727901042969,-548.79774281,0.00012507,2]
[339725602,1727901042982,-4246.81921635,0.00012507,2]
[339725604,1727901042994,-942.316296,0.00012507,2]
[339725606,1727901043007,-18386.04645497,0.00012507,2]
[339725610,1727901043041,-730.07140233,0.00012507,2]
[339725612,1727901043054,-652.62529538,0.00012507,2]
[339725615,1727901043067,-1613.475,0.00012507,2]
[339725618,1727901043089,-20464.29,0.00012507,2]
[339725620,1727901043102,-13862.52208307,0.00012507,2]
[339725622,1727901043115,-1399.21461795,0.00012507,2]
[339725839,1727901046176,-16934.51815553,0.00012507,2]
[339725840,1727901046186,-1000.0,0.00012507,2]
[339725841,1727901046196,-533.0938,0.00012507,2]
[339725842,1727901046206,-12112.5466,0.00012507,2]
[339725843,1727901046216,-46670.49153063,0.00012507,2]
[339725844,1727901046227,-836.70470417,0.00012507,2]
[339725845,1727901046239,-734.01641473,0.00012507,2]
[339725846,1727901046250,-588.94,0.00012507,2]
[339725847,1727901046266,-943.31862009,0.00012507,2]
[339725848,1727901046286,-1874.06416438,0.00012507,2]
[339725849,1727901046303,-7811.78430333,0.00012507,2]
[339725850,1727901046315,-2610.19070253,0.00012507,2]
[339725851,1727901046327,-635.39287192,0.00012507,2]
[339725852,1727901046350,-743.3523116,0.00012507,2]
[339725853,1727901046362,-474.935303,0.00012507,2]
[339725854,1727901046374,-3145.66036694,0.00012507,2]
[339725855,1727901046399,-812.74759037,0.00012507,2]
[339725856,1727901046410,-1996.88135758,0.00012507,2]
[339725857,1727901046421,-603.28558204,0.00012507,2]
[339725858,1727901046444,-2950.33187669,0.00012507,2]
[339725859,1727901046453,-978.78175931,0.00012541,2]
[339725932,1727901158834,-200.0,0.00010959,2]
[339725933,1727901158859,-250.0,0.00011,2]
[339725934,1727901158880,-250.0,0.00011893,2]
[339725935,1727901158900,-5701.23,0.00011946,2]
[339725936,1727901158920,-283.93620275,0.00012455,2]
[339725937,1727901158943,-820.74926808,0.00012541,2]
[339725938,1727901158968,-180.0,0.00012605,2]
[339725939,1727901158989,-151.27,0.00012607,2]
[339725940,1727901159009,-500.0,0.00012697,2]
[339725941,1727901159029,-500.0,0.00012698,2]
[339725942,1727901159049,-300.0,0.00012699,2]
[339725943,1727901159068,-305.5086,0.000127,2]
[339725944,1727901159088,-190.86438807,0.000127,2]
[339725945,1727901159109,-1799.53102739,0.000127,2]
[339725946,1727901159129,-2500.0,0.000127,2]
[339725947,1727901159220,-7500.0,0.000127,2]
[339725948,1727901159241,-168.62496734,0.000127,2]
[339725949,1727901159264,-150.0,0.000127,2]
[339725950,1727901159284,-500.0,0.00012773,2]
[339725951,1727901159304,-500.0,0.00012773,2]
[339725952,1727901159324,-200.48208661,0.00012773,2]
[339725953,1727901159344,-500.0,0.00012773,2]
[339725954,1727901159365,-561.21663832,0.00012773,2]
[339725955,1727901159386,-82303.22264117,0.0001278,2]
[339725956,1727901159406,-156.0,0.0001279,2]
[339725957,1727901159426,-150.0,0.00012795,2]
[339725958,1727901159446,-159.30611124,0.00012799,2]
[339725959,1727901159467,-743.0,0.000128,2]
[339725960,1727901159488,-235955.05806903,0.000128,2]